bitfinex-derivatives/quotes_BTCF0:USTF0_20250422
["timestamp","ask_amount","ask_price","bid_price","bid_amount"]
[1745300007196,0.113406,88248.0,88247.0,0.5407273]
[1745300010293,0.113406,88248.0,88247.0,0.1799273]
[1745300010494,0.113406,88248.0,88247.0,0.5407273]
[1745300012899,0.213406,88248.0,88247.0,0.5407273]
[1745300016992,0.244806,88248.0,88247.0,0.5407273]
[1745300017497,0.244806,88248.0,88247.0,0.1799273]
[1745300017801,0.213406,88248.0,88247.0,0.5407273]
[1745300018200,0.213406,88248.0,88247.0,0.1799273]
[1745300018400,0.213406,88248.0,88247.0,0.5407273]
[1745300018794,0.213406,88248.0,88247.0,0.1799273]
[1745300018995,0.213406,88248.0,88247.0,0.5407273]
[1745300023098,0.213406,88248.0,88247.0,0.5397273]
[1745300023300,0.213406,88248.0,88247.0,0.5407273]
[1745300023906,0.213406,88248.0,88247.0,0.3964]
[1745300024094,0.438406,88248.0,88247.0,0.003]
[1745300024702,0.438406,88248.0,88247.0,0.0357]
[1745300025995,0.438406,88248.0,88247.0,0.1490273]
[1745300026502,0.438326,88248.0,88247.0,0.1490273]
[1745300027202,0.438406,88248.0,88247.0,0.1490273]
[1745300027404,0.438406,88248.0,88247.0,0.1480273]
[1745300028306,0.438406,88248.0,88247.0,0.1470273]
[1745300028506,0.438406,88248.0,88247.0,0.1490273]
[1745300029408,0.405406,88248.0,88247.0,0.1490273]
[1745300029805,0.438306,88248.0,88247.0,0.1490273]
[1745300030115,0.438306,88248.0,88247.0,0.1470273]
[1745300030305,0.438306,88248.0,88247.0,0.1490273]
[1745300030903,0.438306,88248.0,88247.0,0.1470273]
[1745300031110,0.438306,88248.0,88247.0,0.1490273]
[1745300031311,0.438306,88248.0,88247.0,0.0357]
[1745300032011,0.438306,88248.0,88247.0,0.003]
[1745300032711,0.438306,88248.0,88247.0,0.0351]
[1745300033516,0.438306,88248.0,88247.0,0.0331]
[1745300033811,0.438306,88248.0,88247.0,0.0341]
[1745300034208,0.438306,88248.0,88247.0,0.0331]
[1745300034407,0.438306,88248.0,88247.0,0.0341]
[1745300036307,0.626506,88248.0,88247.0,0.0341]
[1745300036908,0.626506,88248.0,88247.0,0.1474273]
[1745300037302,0.438306,88248.0,88247.0,0.1474273]
[1745300037620,0.405406,88248.0,88247.0,0.1474273]
[1745300037821,0.19208,88248.0,88247.0,0.1798273]
[1745300038116,8e-05,88248.0,88247.0,0.1798273]
[1745300038701,0.1133237,88250.0,88249.0,0.1133248]
[1745300039102,0.2005993,88252.0,88249.0,0.1133248]
[1745300039315,0.2572594,88252.0,88251.0,0.1133222]
[1745300039511,0.1233209,88252.0,88251.0,0.11312053]
[1745300039712,0.1233209,88252.0,88251.0,0.17622053]
[1745300039905,0.01,88252.0,88251.0,0.17622053]
[1745300042604,0.01,88252.0,88251.0,0.17722053]
[1745300042810,0.07036,88268.0,88256.0,0.0566574]
[1745300043008,0.00010801,88264.0,88262.0,0.4741081]
[1745300043613,0.00010801,88264.0,88263.0,0.1133068]
[1745300043808,0.005,88269.0,88268.0,0.1133004]
[1745300044007,0.055,88269.0,88268.0,0.1133004]
[1745300044704,0.055,88269.0,88268.0,0.1752004]
[1745300047214,0.1682991,88269.0,88268.0,0.1752004]
[1745300047806,0.055,88269.0,88268.0,0.1752004]
[1745300049911,0.1682991,88269.0,88268.0,0.1752004]
[1745300050416,0.1836424,88282.0,88281.0,0.1132837]
[1745300050605,0.2632824,88282.0,88281.0,0.4740837]
[1745300051111,0.4552824,88282.0,88281.0,0.4740837]
[1745300051514,0.4553624,88282.0,88281.0,0.4740837]
[1745300052416,0.4883624,88282.0,88281.0,0.4740837]
[1745300052720,0.1132927,88274.0,88273.0,0.36096997]
[1745300053014,0.2632927,88274.0,88273.0,0.36096997]
[1745300053610,0.3570927,88274.0,88273.0,0.36096997]
[1745300054014,0.3570927,88274.0,88273.0,0.36196997]
[1745300054212,0.5490927,88274.0,88273.0,0.36196997]
[1745300060423,0.5490927,88274.0,88273.0,0.00116997]
[1745300061524,0.6194527,88274.0,88273.0,0.00116997]
[1745300062725,0.6194527,88274.0,88273.0,0.00016997]
[1745300062934,0.6194527,88274.0,88273.0,0.00116997]
[1745300063223,0.4867927,88274.0,88273.0,0.11446387]
[1745300063429,0.3152927,88274.0,88273.0,0.11446387]
[1745300063617,0.3153727,88274.0,88273.0,0.11446387]
[1745300064219,0.20208,88274.0,88273.0,0.11446387]
[1745300064419,0.202,88274.0,88273.0,0.11346387]
[1745300064623,0.20208,88274.0,88273.0,0.11446387]
[1745300065225,0.01008,88274.0,88273.0,0.11446387]
[1745300065424,0.1132927,88274.0,88273.0,0.11446387]
[1745300065620,0.1133727,88274.0,88273.0,0.11446387]
[1745300065830,0.1133727,88274.0,88273.0,0.14516387]
[1745300067525,0.00010801,88281.0,88280.0,0.113285]
[1745300067719,0.00014581,88287.0,88286.0,0.1132773]
[1745300067925,0.07,88287.0,88286.0,0.1132773]
[1745300068227,0.183356,88287.0,88286.0,0.1773773]
[1745300068428,0.183276,88287.0,88286.0,0.1773773]
[1745300068625,0.183356,88287.0,88286.0,0.1773773]
[1745300068818,0.184356,88287.0,88286.0,0.1773773]
[1745300069022,0.07108,88287.0,88286.0,0.1773773]
[1745300069227,0.00108,88287.0,88286.0,0.1773773]
[1745300069627,0.114356,88287.0,88286.0,0.1773773]
[1745300069931,0.114276,88287.0,88286.0,0.1773773]
[1745300070126,0.114356,88287.0,88286.0,0.1773773]
[1745300071435,0.00108,88287.0,88286.0,0.1773773]
[1745300072232,0.114356,88287.0,88286.0,0.1773773]
[1745300073133,0.306356,88287.0,88286.0,0.1773773]
[1745300073330,0.19308,88287.0,88286.0,0.1773773]
[1745300074136,0.00108,88287.0,88286.0,0.1773773]
[1745300076533,0.21326,88300.0,88299.0,0.1132606]
[1745300076728,0.25336801,88300.0,88299.0,0.4740606]
[1745300077229,0.44536801,88300.0,88299.0,0.4740606]
[1745300077429,0.47836801,88300.0,88299.0,0.4740606]
[1745300077625,0.47836801,88300.0,88299.0,0.5371606]
[1745300078025,0.44536801,88300.0,88299.0,0.5371606]
[1745300078230,0.44536801,88300.0,88299.0,0.5381606]
[1745300078833,0.29210801,88300.0,88299.0,0.9009606]
[1745300079030,0.292,88300.0,88299.0,0.9009606]
[1745300079236,0.10008,88300.0,88299.0,0.9009606]
[1745300079532,0.11335631,88309.0,88308.0,0.113249]
[1745300079533,0.1132483,88309.0,88308.0,0.113249]
[1745300079731,0.00014581,88316.0,88312.0,0.0566218]
[1745300079938,0.00014581,88316.0,88315.0,0.1132401]
[1745300079939,0.2832409,88316.0,88315.0,0.1132401]
[1745300080125,0.36208,88316.0,88315.0,0.1132401]
[1745300080331,0.192,88316.0,88315.0,0.1132401]
[1745300080632,0.19208,88316.0,88315.0,0.1132401]
[1745300081025,0.3053188,88316.0,88315.0,0.1132401]
[1745300081428,0.19208,88316.0,88315.0,0.1142401]
[1745300081629,0.3553188,88316.0,88315.0,0.001]
[1745300081834,0.3553188,88316.0,88315.0,0.003]
[1745300082527,0.3553188,88316.0,88315.0,0.1162401]
[1745300082932,0.3552388,88316.0,88315.0,0.1162401]
[1745300083141,0.24208,88316.0,88315.0,0.1791401]
[1745300083324,0.242,88316.0,88315.0,0.1791401]
[1745300083539,0.19208,88316.0,88315.0,0.1791401]
[1745300083834,0.192,88316.0,88315.0,0.1791401]
[1745300084627,0.19208,88316.0,88315.0,0.1791401]
[1745300084827,0.005,88321.0,88320.0,0.1132337]
[1745300085130,0.005,88321.0,88320.0,0.4740337]
[1745300085534,0.00508,88321.0,88320.0,0.4740337]
[1745300086039,0.0566094,88332.0,88331.0,0.1132196]
[1745300086243,0.1266094,88332.0,88331.0,0.4740196]
[1745300086840,0.1266094,88332.0,88331.0,0.5376196]
[1745300087142,0.3186094,88332.0,88331.0,0.5376196]
[1745300087434,0.00053146,88346.0,88332.0,0.0566091]
[1745300087631,0.1698062,88344.0,88343.0,0.4740016]
[1745300087827,0.2898062,88344.0,88343.0,0.4740016]
[1745300088139,0.4818862,88344.0,88343.0,0.4730016]
[1745300088338,0.4818862,88344.0,88343.0,0.5366016]
[1745300088531,0.4818862,88344.0,88343.0,0.5356016]
[1745300088727,0.31308,88344.0,88343.0,0.5356016]
[1745300089126,0.4262829,88344.0,88343.0,0.5356016]
[1745300089331,0.4262029,88344.0,88343.0,0.5356016]
[1745300089634,0.4262829,88344.0,88343.0,0.5356016]
[1745300090228,0.31308,88344.0,88343.0,0.5356016]
[1745300090429,0.4262829,88344.0,88343.0,0.5356016]
[1745300090637,0.31308,88344.0,88343.0,0.5356016]
[1745300090838,0.193,88344.0,88343.0,0.5356016]
[1745300091030,0.3052829,88344.0,88343.0,0.5356016]
[1745300091235,8e-05,88344.0,88343.0,0.5356016]
[1745300092140,0.19208,88344.0,88343.0,0.5356016]
[1745300094736,0.05678304,88368.0,88364.0,0.1131773]
[1745300094942,0.259767,88365.0,88364.0,0.1131773]
[1745300095244,0.259767,88365.0,88363.0,0.3608]
[1745300095245,0.1131773,88364.0,88363.0,0.3608]
[1745300095433,0.4174773,88364.0,88363.0,0.3608]
[1745300095633,0.3531773,88364.0,88363.0,0.4739786]
[1745300096138,0.6094773,88364.0,88363.0,0.4739786]
[1745300096841,0.5451773,88364.0,88363.0,0.4739786]
[1745300097231,0.222,88364.0,88363.0,0.4739786]
[1745300097538,0.22308,88364.0,88363.0,0.5072786]
[1745300097744,0.00014581,88374.0,88371.0,0.1131683]
[1745300097933,0.113167,88372.0,88371.0,0.1121683]
[1745300098134,0.337247,88372.0,88371.0,0.1454683]
[1745300098440,0.305247,88372.0,88371.0,0.1772683]
[1745300099039,0.00382045,88372.0,88371.0,0.1772683]
[1745300099241,0.005,88373.0,88372.0,0.113167]
[1745300099631,0.00508,88373.0,88372.0,0.36012299]
[1745300099832,0.005,88373.0,88372.0,0.61012299]
[1745300100037,0.005,88399.0,88398.0,0.1131337]
[1745300100238,0.1181325,88399.0,88398.0,0.4739337]
[1745300100439,0.1181325,88399.0,88398.0,0.3608]
[1745300100642,0.1131427,88391.0,88390.0,0.36096975]
[1745300100839,0.1431427,88391.0,88390.0,5e-08]
[1745300101040,0.3313427,88391.0,88390.0,5e-08]
[1745300101235,0.3351427,88391.0,88390.0,5e-08]
[1745300101434,0.3986427,88391.0,88390.0,5e-08]
[1745300101639,0.3987227,88391.0,88390.0,5e-08]
[1745300102040,0.3987227,88391.0,88390.0,0.00100005]
[1745300102639,0.5118587,88391.0,88390.0,0.00100005]
[1745300102839,0.5118587,88391.0,88390.0,0.00200005]
[1745300105140,0.3987227,88391.0,88390.0,0.00200005]
[1745300105848,0.5118587,88391.0,88390.0,0.00200005]
[1745300106048,0.1131568,88380.0,88379.0,0.0327]
[1745300106241,0.3631568,88380.0,88379.0,0.0327]
[1745300106843,0.4251568,88380.0,88379.0,0.0327]
[1745300107349,0.113167,88372.0,88371.0,0.00016975]
[1745300107552,0.383167,88372.0,88371.0,0.00016975]
[1745300108344,0.383167,88372.0,88360.0,0.00026]
[1745300108345,0.0565891,88364.0,88360.0,0.00026]
[1745300108542,0.1131811,88361.0,88360.0,0.00026]
[1745300108741,0.3831811,88361.0,88360.0,0.00026]
[1745300108947,0.1131914,88353.0,88352.0,0.11488993]
[1745300109147,0.1431914,88353.0,88352.0,0.14708993]
[1745300109752,0.2042914,88353.0,88352.0,0.03389763]
[1745300110045,0.2042914,88353.0,88352.0,0.00169763]
[1745300110247,0.3962914,88353.0,88352.0,0.00169763]
[1745300110452,0.3962914,88353.0,88352.0,0.00369763]
[1745300111247,0.3962914,88353.0,88352.0,0.00569763]
[1745300111746,0.39643578,88353.0,88352.0,0.00569763]
[1745300112047,0.75723578,88353.0,88352.0,0.004]
[1745300112247,0.75723578,88353.0,88352.0,0.002]
[1745300113049,0.1131952,88350.0,88349.0,0.00026]
[1745300113254,0.2631952,88350.0,88349.0,0.00026]
[1745300113560,0.2631952,88350.0,88348.0,0.0309]
[1745300113561,0.1131965,88349.0,88348.0,0.0309]
[1745300113746,0.3658965,88349.0,88348.0,0.0309]
[1745300114144,0.5578965,88349.0,88348.0,0.0309]
[1745300114339,0.5578965,88349.0,88348.0,0.1440978]
[1745300114539,0.5579765,88349.0,88348.0,0.1440978]
[1745300114743,0.5579765,88349.0,88348.0,0.1450978]
[1745300115141,0.5579765,88349.0,88348.0,0.1460978]
[1745300115539,0.5579765,88349.0,88348.0,0.1450978]
[1745300115748,0.5579765,88349.0,88348.0,0.1460978]
[1745300117750,0.5579765,88349.0,88348.0,0.5068978]
[1745300122356,0.5579765,88349.0,88348.0,0.3937]
[1745300122655,0.5579765,88349.0,88348.0,0.002]
[1745300123657,0.5579765,88349.0,88348.0,0.001]
[1745300123950,0.5579765,88349.0,88348.0,0.002]
[1745300124150,0.5579765,88349.0,88348.0,0.001]
[1745300124560,0.1132003,88346.0,88345.0,0.03316]
[1745300124860,0.3732003,88346.0,88345.0,0.0329]
[1745300125257,0.5652003,88346.0,88345.0,0.0329]
[1745300125758,0.5652003,88346.0,88345.0,0.1461016]
[1745300126059,0.5652003,88346.0,88345.0,0.0636]
[1745300126654,0.5652003,88346.0,88345.0,0.0646]
[1745300126858,0.5652003,88346.0,88345.0,0.0656]
[1745300129862,0.5652003,88346.0,88345.0,0.0646]
[1745300131159,0.6383203,88346.0,88345.0,0.0646]
[1745300131355,0.6383203,88346.0,88345.0,0.1778016]
[1745300131755,0.6383203,88346.0,88345.0,0.0646]
[1745300133166,0.6383203,88346.0,88345.0,0.0656]
[1745300133460,0.6712203,88346.0,88345.0,0.0656]
[1745300133661,0.6712203,88346.0,88345.0,0.0646]
[1745300133853,0.6712203,88346.0,88345.0,0.0656]
[1745300134055,0.6712203,88346.0,88345.0,0.0646]
[1745300137770,0.6712203,88346.0,88345.0,0.0339]
[1745300137967,0.6712203,88346.0,88335.0,0.3608]
[1745300137968,0.671212,88346.0,88335.0,0.3608]
[1745300138165,0.1132119,88337.0,88336.0,0.0322]
[1745300138469,0.3732119,88337.0,88336.0,0.0322]
[1745300138966,0.3732119,88337.0,88336.0,0.0648]
[1745300139164,0.5962119,88337.0,88336.0,0.0648]
[1745300140070,0.5652119,88337.0,88336.0,0.1790131]
[1745300140270,0.5652119,88337.0,88336.0,0.2099131]
[1745300140574,0.5652919,88337.0,88336.0,0.2089131]
[1745300142179,0.5652919,88337.0,88336.0,0.2099131]
[1745300142982,0.5652919,88337.0,88336.0,0.2109131]
[1745300143479,0.5652919,88337.0,88336.0,0.2099131]
[1745300143669,0.5652919,88337.0,88336.0,0.2109131]
[1745300144173,0.5652919,88337.0,88336.0,0.2099131]
[1745300144379,0.5652919,88337.0,88336.0,0.2109131]
[1745300144983,0.5652919,88337.0,88336.0,0.0668]
[1745300145478,0.6283919,88337.0,88336.0,0.0668]
[1745300146374,0.6283919,88337.0,88336.0,0.0658]
[1745300146574,0.6283919,88337.0,88336.0,0.0648]
[1745300146778,0.6283919,88337.0,88336.0,0.0658]
[1745300149391,0.6283919,88337.0,88336.0,0.0648]
[1745300149888,0.1132221,88329.0,88328.0,0.00016975]
[1745300150090,0.2932221,88329.0,88328.0,0.00016975]
[1745300150290,0.8460221,88329.0,88328.0,0.00016975]
[1745300150685,0.8760221,88329.0,88328.0,0.00016975]
[1745300151091,0.8760221,88329.0,88328.0,0.00116975]
[1745300151696,0.8460221,88329.0,88328.0,0.00116975]
[1745300152094,0.8460221,88329.0,88328.0,0.00216975]
[1745300152297,0.8765221,88329.0,88328.0,0.00216975]
[1745300152597,0.9071221,88329.0,88328.0,0.00216975]
[1745300156087,0.1132362,88318.0,88317.0,0.0641]
[1745300156397,0.3732362,88318.0,88317.0,0.0641]
[1745300156587,0.4458362,88318.0,88317.0,0.0641]
[1745300156902,0.5413362,88318.0,88317.0,0.0641]
[1745300157101,0.7333362,88318.0,88317.0,0.0641]
[1745300157292,0.7012362,88318.0,88317.0,0.0641]
[1745300157802,0.7012362,88318.0,88317.0,0.0661]
[1745300158100,0.7012362,88318.0,88317.0,0.0963]
[1745300158101,0.6378362,88318.0,88317.0,0.0963]
[1745300158699,0.6378362,88318.0,88317.0,0.0983]
[1745300158900,0.6690362,88318.0,88317.0,0.0983]
[1745300160411,0.6690362,88318.0,88317.0,0.0681]
[1745300163110,0.6690362,88318.0,88316.0,0.00169838]
[1745300163111,0.0566215,88313.0,88309.0,0.00016975]
[1745300163411,0.4740465,88310.0,88309.0,0.03016975]
[1745300163609,0.7240465,88310.0,88309.0,0.03016975]
[1745300164099,0.9160465,88310.0,88309.0,0.03016975]
[1745300164300,0.9160465,88310.0,88309.0,0.03216975]
[1745300164709,0.9160465,88310.0,88309.0,0.03416975]
[1745300165511,0.9160465,88310.0,88309.0,0.03216975]
[1745300165710,0.9160465,88310.0,88309.0,0.03416975]
[1745300166007,0.9161265,88310.0,88309.0,0.03416975]
[1745300169505,0.5553265,88310.0,88309.0,0.03416975]
[1745300178719,0.5553265,88310.0,88309.0,0.03216975]
[1745300179015,0.5563265,88310.0,88309.0,0.03216975]
[1745300179219,0.5573265,88310.0,88309.0,0.03016975]
[1745300181017,0.5573265,88310.0,88305.0,0.0317]
[1745300181018,0.1132516,88306.0,88305.0,0.0317]
[1745300181226,0.3932516,88306.0,88305.0,0.0317]
[1745300181918,0.19408,88310.0,88309.0,0.1132478]
[1745300182118,0.00108,88310.0,88309.0,0.3052478]
[1745300182310,0.00014581,88315.0,88312.0,0.1132439]
[1745300182514,0.11340605,88318.0,88317.0,0.1132375]
[1745300182818,0.00016985,88318.0,88317.0,0.4740375]
[1745300183124,0.11340605,88318.0,88317.0,0.4740375]
[1745300183322,0.11340605,88318.0,88317.0,0.4730375]
[1745300183915,0.11340605,88318.0,88317.0,0.4740375]
[1745300184112,0.11340605,88318.0,88317.0,0.5045375]
[1745300185019,0.11340605,88318.0,88317.0,0.5055375]
[1745300185424,0.11340605,88318.0,88317.0,0.5385375]
[1745300185922,0.00016985,88318.0,88317.0,0.5385375]
[1745300186119,0.00016985,88318.0,88317.0,0.7305375]
[1745300187119,0.00016985,88318.0,88317.0,0.5385375]
[1745300192631,0.00019684,88338.0,88337.0,0.1132119]
[1745300192927,0.0566015,88344.0,88343.0,0.1132029]
[1745300193126,0.0874015,88344.0,88343.0,0.1132029]
[1745300193625,0.0974815,88344.0,88343.0,0.1132029]
[1745300193831,0.0974815,88344.0,88343.0,0.1122029]
[1745300194131,0.04088,88344.0,88343.0,0.1122029]
[1745300194332,0.04088,88344.0,88343.0,0.1052029]
[1745300194815,0.1550829,88344.0,88343.0,0.1052029]
[1745300195529,0.1560829,88344.0,88343.0,0.1052029]
[1745300195730,0.1550829,88344.0,88343.0,0.1052029]
[1745300195929,0.1550829,88344.0,88343.0,0.1062029]
[1745300196327,0.1550829,88344.0,88343.0,0.1052029]
[1745300196627,0.1550829,88344.0,88343.0,0.1062029]
[1745300196816,0.1540829,88344.0,88343.0,0.1072029]
[1745300198926,0.1540829,88344.0,88343.0,0.1062029]
[1745300199226,0.3460829,88344.0,88343.0,0.1082029]
[1745300199619,0.3460829,88344.0,88343.0,0.1072029]
[1745300200022,0.3460829,88344.0,88343.0,0.4680029]
[1745300201427,0.3460829,88344.0,88343.0,0.3628]
[1745300201627,0.3460829,88344.0,88343.0,0.4760042]
[1745300202529,0.3460829,88344.0,88343.0,0.4740042]
[1745300203328,0.3460829,88344.0,88343.0,0.1132042]
[1745300209822,0.3460829,88344.0,88343.0,0.1142042]
[1745300211931,0.3460829,88344.0,88343.0,0.1132042]
[1745300215429,0.3460829,88344.0,88343.0,0.1142042]
[1745300215637,0.3460829,88344.0,88343.0,0.1152042]
[1745300218540,0.3460829,88344.0,88343.0,0.1142042]
[1745300218837,0.3460829,88344.0,88343.0,0.1152042]
[1745300220039,0.3460829,88344.0,88343.0,0.1142042]
[1745300221729,0.3460829,88344.0,88343.0,0.1152042]
[1745300222136,0.3460829,88344.0,88343.0,0.1142042]
[1745300222541,0.3460829,88344.0,88343.0,0.1152042]
[1745300224443,0.3460829,88344.0,88343.0,0.1142042]
[1745300224639,0.3460829,88344.0,88343.0,0.1152042]
[1745300225046,0.3460829,88344.0,88343.0,0.1142042]
[1745300226141,0.3460829,88344.0,88343.0,0.1152042]
[1745300229947,0.3460829,88344.0,88343.0,0.1142042]
[1745300230546,0.3460829,88344.0,88343.0,0.1132042]
[1745300230752,0.3460829,88344.0,88343.0,0.1142042]
[1745300231953,0.1132131,88336.0,88329.0,0.3608]
[1745300232155,0.5449431,88336.0,88330.0,0.0302]
[1745300232359,0.5449431,88336.0,88332.0,0.1132175]
[1745300232761,0.6100431,88336.0,88332.0,0.1132175]
[1745300233060,0.6100431,88336.0,88335.0,0.00116985]
[1745300234656,0.62149975,88336.0,88335.0,0.00116985]
[1745300235054,0.62149975,88336.0,88335.0,0.00016985]
[1745300235663,0.6100431,88336.0,88335.0,0.00016985]
[1745300235864,0.6100431,88336.0,88335.0,0.11338425]
[1745300236362,0.6100431,88336.0,88335.0,0.00016985]
[1745300245568,0.5770431,88336.0,88335.0,0.11338425]
[1745300246166,0.5771231,88336.0,88335.0,0.14458425]
[1745300246368,0.5771231,88336.0,88335.0,0.17638425]
[1745300247077,0.5771231,88336.0,88335.0,0.06316985]
[1745300247284,0.5771231,88336.0,88335.0,0.03136985]
[1745300247779,0.5771231,88336.0,88335.0,0.00116985]
[1745300248562,0.5771231,88336.0,88335.0,0.00016985]
[1745300251077,0.7653231,88336.0,88335.0,0.00016985]
[1745300254182,0.5771231,88336.0,88335.0,0.00016985]
[1745300256777,0.5771231,88336.0,88335.0,0.8534923]
[1745300256778,0.19208,88336.0,88335.0,0.8534923]
[1745300257074,0.14218,88336.0,88335.0,1.0455125]
[1745300257266,8e-05,88336.0,88335.0,1.0455125]
[1745300257469,0.00031566,88352.0,88351.0,0.1131939]
[1745300257470,0.00016985,88352.0,88351.0,0.1131939]
[1745300257776,0.00016985,88352.0,88351.0,0.49011815]
[1745300258674,0.00016985,88352.0,88351.0,0.55241815]
[1745300259064,0.00016985,88352.0,88351.0,0.55341815]
[1745300260770,0.00016985,88352.0,88351.0,0.55299244]
[1745300261977,0.00016985,88352.0,88351.0,0.56131321]
[1745300262874,0.00016985,88352.0,88351.0,0.54561467]
[1745300263468,0.00016985,88352.0,88351.0,0.54661467]
[1745300263668,0.00016985,88352.0,88351.0,0.90741467]
[1745300264273,0.00024985,88352.0,88351.0,1.09941467]
[1745300265072,0.00024985,88352.0,88351.0,0.90741467]
[1745300265273,0.00024985,88352.0,88351.0,1.02059866]
[1745300267678,0.12344245,88352.0,88351.0,0.90741467]
[1745300268178,0.31544245,88352.0,88351.0,0.90741467]
[1745300268674,0.34684245,88352.0,88351.0,0.90741467]
[1745300270080,0.15484245,88352.0,88351.0,0.90741467]
[1745300271080,0.18514245,88352.0,88351.0,0.90741467]
[1745300272187,0.37714245,88352.0,88351.0,0.54661467]
[1745300272384,0.36714245,88352.0,88351.0,0.54661467]
[1745300273176,0.18514245,88352.0,88351.0,0.54661467]
[1745300273582,0.18514245,88352.0,88351.0,0.3628]
[1745300273879,0.18514245,88352.0,88351.0,0.002]
[1745300274081,0.37714245,88352.0,88351.0,0.002]
[1745300274675,0.37714245,88352.0,88351.0,0.001]
[1745300274880,0.37814245,88352.0,88351.0,0.001]
[1745300275484,0.37714245,88352.0,88351.0,0.001]
[1745300275981,0.1131965,88349.0,88348.0,0.1131972]
[1745300276173,0.4151965,88349.0,88348.0,0.1131972]
[1745300276983,0.1132029,88344.0,88330.0,0.05661]
[1745300277184,0.3252029,88344.0,88343.0,0.4740042]
[1745300277778,0.4208029,88344.0,88343.0,0.4740042]
[1745300279986,0.4208029,88344.0,88343.0,0.5052042]
[1745300281191,0.4208029,88344.0,88343.0,0.4740042]
[1745300282089,0.275,88344.0,88343.0,0.48974655]
[1745300282393,0.00016985,88352.0,88351.0,0.1131939]
[1745300282582,0.00027786,88352.0,88351.0,0.48972953]
[1745300282979,0.00016985,88352.0,88351.0,0.48972953]
[1745300283282,0.00016985,88352.0,88351.0,0.55132953]
[1745300283283,0.00024985,88352.0,88351.0,0.55132953]
[1745300283485,0.00024985,88352.0,88351.0,0.56264983]
[1745300284786,0.00024985,88352.0,88351.0,0.56364983]
[1745300284979,0.00024985,88352.0,88351.0,0.55232953]
[1745300285978,0.00024985,88352.0,88351.0,0.55240876]
[1745300287385,0.00016985,88352.0,88351.0,0.55240876]
[1745300287581,0.00024985,88352.0,88351.0,0.55240876]
[1745300287785,0.00024985,88352.0,88351.0,0.66522972]
[1745300289793,0.00024985,88352.0,88351.0,0.66502688]
[1745300289998,0.00024985,88352.0,88351.0,0.5365939]
[1745300296993,0.00024985,88352.0,88351.0,0.551801]
[1745300297384,0.12344245,88352.0,88351.0,0.001]
[1745300297995,0.15654245,88352.0,88351.0,0.001]
[1745300298193,0.1132029,88344.0,88340.0,0.17223702]
[1745300298396,0.2332029,88344.0,88340.0,0.17223702]
[1745300298596,0.2332029,88344.0,88340.0,0.28544492]
[1745300298997,0.2974029,88344.0,88340.0,0.28544492]
[1745300299299,0.4894029,88344.0,88340.0,0.28544492]
[1745300299897,0.4894029,88344.0,88340.0,0.17223702]
[1745300301492,0.1132067,88341.0,88340.0,0.17223702]
[1745300301696,0.2532067,88341.0,88340.0,0.17223702]
[1745300301896,0.2532067,88341.0,88340.0,0.13171592]
[1745300302196,0.1698535,88320.0,88319.0,0.1698485]
[1745300302396,0.1698535,88320.0,88319.0,0.17829253]
[1745300302786,0.0566173,88320.0,88319.0,0.17829253]
[1745300303190,0.2486173,88320.0,88319.0,0.17829253]
[1745300303598,0.2799173,88320.0,88319.0,0.21009253]
[1745300304686,0.2799173,88320.0,88319.0,0.21109253]
[1745300305696,0.2799173,88320.0,88319.0,0.21309253]
[1745300307995,0.2799173,88320.0,88319.0,0.21109253]
[1745300308199,0.2799173,88320.0,88319.0,0.21309253]
[1745300309696,0.2799173,88320.0,88319.0,0.57389253]
[1745300309891,0.3120173,88320.0,88319.0,0.57389253]
[1745300310497,0.05911423,88320.0,88319.0,0.70242058]
[1745300310992,0.05919423,88320.0,88319.0,0.70242058]
[1745300311192,8e-05,88320.0,88319.0,0.58919659]
[1745300311905,8e-05,88320.0,88319.0,0.57389253]
[1745300312204,8e-05,88320.0,88319.0,0.76589253]
[1745300312393,8e-05,88320.0,88319.0,0.87911652]
[1745300312594,8e-05,88320.0,88319.0,0.89437089]
[1745300312800,8e-05,88320.0,88319.0,0.87911652]
[1745300312995,8e-05,88320.0,88319.0,0.89436986]
[1745300313198,8e-05,88320.0,88319.0,0.70236986]
[1745300313404,8e-05,88320.0,88319.0,0.68711652]
[1745300314402,8e-05,88320.0,88319.0,0.70253128]
[1745300315601,8e-05,88320.0,88319.0,0.70257115]
[1745300319200,8e-05,88320.0,88319.0,0.89457115]
[1745300320109,8e-05,88320.0,88319.0,0.70257115]
[1745300322411,0.00016985,88328.0,88327.0,0.1132247]
[1745300322607,0.00016985,88328.0,88327.0,0.48947933]
[1745300323107,0.00016985,88328.0,88327.0,0.68147933]
[1745300323307,0.00016985,88328.0,88327.0,0.74587933]
[1745300323815,0.00016985,88328.0,88327.0,0.7464886]
[1745300324318,5e-08,88328.0,88327.0,0.85870429]
[1745300324614,0.06076,88344.0,88343.0,0.1132042]
[1745300324815,0.06076,88344.0,88343.0,0.8348042]
[1745300325007,0.06084,88344.0,88343.0,0.8348042]
[1745300325208,0.06084,88344.0,88343.0,0.8976042]
[1745300326013,8e-05,88344.0,88343.0,1.0108002]
[1745300326211,8e-05,88344.0,88343.0,1.02687079]
[1745300326410,0.03,88351.0,88350.0,0.1131952]
[1745300326609,0.03,88351.0,88350.0,0.12926579]
[1745300327312,0.03,88351.0,88350.0,0.19176579]
[1745300327514,0.03,88351.0,88350.0,0.20309398]
[1745300327712,0.03,88351.0,88350.0,0.20408946]
[1745300327914,0.0609,88351.0,88350.0,0.20408946]
[1745300328113,0.2529,88351.0,88350.0,0.20508946]
[1745300329115,0.0609,88351.0,88350.0,0.20508946]
[1745300329608,0.00016985,88352.0,88351.0,0.11305226]
[1745300329804,0.00016985,88352.0,88351.0,0.48991833]
[1745300330007,0.00016985,88352.0,88351.0,0.55201833]
[1745300330405,0.00016985,88352.0,88351.0,0.66520232]
[1745300330602,0.00024985,88352.0,88351.0,0.66520232]
[1745300330802,0.00016985,88352.0,88351.0,0.66720232]
[1745300331003,0.00024985,88352.0,88351.0,0.66720232]
[1745300332507,0.00024985,88352.0,88351.0,0.55401833]
[1745300333009,0.00024985,88352.0,88351.0,0.49191833]
[1745300333211,0.19224985,88352.0,88351.0,0.49191833]
[1745300333511,0.19224985,88352.0,88351.0,0.52441833]
[1745300334807,0.19224985,88352.0,88351.0,0.49191833]
[1745300335809,0.19216985,88352.0,88351.0,0.49191833]
[1745300336013,0.19224985,88352.0,88351.0,0.49191833]
[1745300336812,0.19224985,88352.0,88351.0,0.49116]
[1745300337515,0.19224985,88352.0,88351.0,0.52326]
[1745300339209,0.19224985,88352.0,88351.0,0.49116]
[1745300340510,0.19224985,88352.0,88351.0,0.49125311]
[1745300345316,0.19224985,88352.0,88351.0,0.49108493]
[1745300346916,0.19216985,88352.0,88351.0,0.49108493]
[1745300347122,0.00016985,88352.0,88351.0,0.5544047]